bitfinex/quotes_SOLUSD_20220311
["timestamp","ask_amount","ask_price","bid_price","bid_amount"]
[1647021933456,24.7324,80.958,80.891,24.5771]
[1647021933756,23.7807,80.969,80.891,63.47139161]
[1647021933959,23.7807,80.969,80.9,14.42]
[1647021934156,23.7807,80.969,80.91,18.5357]
[1647021934556,23.7807,80.969,80.911,3.04447957]
[1647021934755,6.176,80.983,80.911,38.89429161]
[1647021934958,6.176,80.983,80.912,23.4766]
[1647021935156,6.176,80.983,80.912,26.52107957]
[1647021935358,6.176,80.983,80.913,3.04447957]
[1647021935558,6.176,80.983,80.914,52.32725453]
[1647021936056,6.176,80.983,80.915,25.77269855]
[1647021936257,6.176,80.983,80.931,58.4857005]
[1647021936760,6.176,80.983,80.931,61.53018007]
[1647021936956,24.0204,80.984,80.931,61.53018007]
[1647021937556,24.0204,80.984,80.94,18.5305]
[1647021937758,1.6792485,80.995,80.94,18.5305]
[1647021937957,1.6792485,80.996,80.941,3.04447957]
[1647021938158,1.6792485,81.0,80.941,3.04447957]
[1647021938360,1.6792485,80.999,80.941,3.04447957]
[1647021938558,1.6792485,81.003,80.95,18.5219]
[1647021938960,123.6,81.008,80.95,18.5219]
[1647021939160,6.174,81.007,80.95,18.5219]
[1647021939757,6.174,81.008,80.95,18.5219]
[1647021940164,18.5286,81.0,80.95,18.5219]
[1647021940366,6.174,81.008,80.95,18.5219]
[1647021940563,129.774,81.008,80.95,18.5219]
[1647021941160,117.774,81.008,80.95,18.5219]
[1647021941364,6.174,81.007,80.95,18.5219]
[1647021942163,18.5281,81.0,80.95,18.5219]
[1647021943264,18.5281,81.0,80.951,6.174]
[1647021943663,6.174,81.008,80.951,6.174]
[1647021943865,6.174,81.008,80.96,18.5261]
[1647021944368,29.0022,81.009,80.96,18.5261]
[1647021945769,22.8282,81.009,80.961,60.53769135]
[1647021945967,22.8282,81.009,80.96,18.5261]
[1647021946872,22.8282,81.009,80.96,74.45302663]
[1647021947768,24.5759,81.022,80.97,18.5179]
[1647021947970,24.5759,81.022,80.96,55.92692663]
[1647021947971,24.5759,81.022,80.971,6.173]
[1647021948168,24.5759,81.022,80.96,70.34692663]
[1647021948169,24.5759,81.022,80.961,6.173]
[1647021948369,23.1528,81.033,80.961,6.173]
[1647021948572,1.6792485,81.048,80.973,52.12785197]
[1647021948769,24.4162,81.059,80.974,6.172]
[1647021948969,24.4162,81.059,80.98,14.42]
[1647021949169,24.4162,81.059,81.0,18.514]
[1647021949368,24.4162,81.059,81.001,47.69377102]
[1647021950569,24.4162,81.059,81.01,18.5127]
[1647021950968,24.4162,81.059,80.991,6.17]
[1647021951170,129.77,81.058,80.987,23.2637]
[1647021951372,6.17,81.058,80.987,23.2637]
[1647021951572,6.17,81.058,80.988,55.81383605]
[1647021952473,129.77,81.058,80.988,55.81383605]
[1647021952674,129.77,81.058,80.987,23.2637]
[1647021952873,129.77,81.058,80.988,6.171]
[1647021952874,197.76,81.049,80.988,6.171]
[1647021953070,6.171,81.048,80.971,3.04447957]
[1647021953271,197.76,81.047,80.951,6.172]
[1647021953471,197.76,81.045,80.943,6.172]
[1647021953671,197.76,81.045,80.944,57.00708865]
[1647021953872,197.76,81.045,80.945,6.173]
[1647021954070,197.76,81.043,80.945,6.173]
[1647021954270,197.76,81.041,80.945,9.21747957]
[1647021954471,197.76,81.041,80.946,3.04447957]
[1647021954672,6.173,81.04,80.947,6.173]
[1647021954873,197.76,81.038,80.947,6.173]
[1647021955102,18.5224,81.03,80.95,18.5262]
[1647021955275,18.5224,81.03,80.951,6.173]
[1647021955471,24.787,81.029,80.951,9.21747957]
[1647021955871,24.787,81.029,80.952,3.04447957]
[1647021956071,24.787,81.029,80.97,18.5204]
[1647021956273,24.787,81.029,80.972,58.34168944]
[1647021956474,24.787,81.029,80.973,6.172]
[1647021957973,24.787,81.029,80.98,18.519]
[1647021958174,24.787,81.029,80.972,58.34168944]
[1647021958175,24.787,81.029,80.981,6.172]
[1647021958376,24.787,81.029,80.973,6.172]
[1647021958575,24.787,81.029,80.972,58.34168944]
[1647021958776,24.787,81.029,80.974,3.04447957]
[1647021959377,24.787,81.029,80.99,18.5184]
[1647021964387,24.787,81.029,80.988,6.172]
[1647021964583,24.787,81.029,80.974,3.04447957]
[1647021964584,24.787,81.029,80.98,18.5204]
[1647021965386,24.787,81.029,80.98,66.72653414]
[1647021965585,24.787,81.029,80.98,18.5204]
[1647021966786,24.787,81.029,80.99,18.5189]
[1647021968293,24.787,81.029,80.971,6.172]
[1647021968493,123.6,81.019,80.966,6.172]
[1647021968694,123.6,81.019,80.953,6.173]
[1647021968894,6.173,81.026,80.953,6.173]
[1647021968895,123.6,81.015,80.953,6.173]
[1647021969099,123.6,81.015,80.952,22.5338]
[1647021969297,74.16,81.0,80.928,6.174]
[1647021969494,24.2504,81.018,80.926,3.04447957]
[1647021969495,123.6,80.989,80.927,6.175]
[1647021969695,18.532,80.99,80.929,3.04447957]
[1647021969906,24.3704,80.995,80.929,3.04447957]
[1647021969907,24.3704,80.995,80.93,6.175]
[1647021970119,23.58,81.016,80.93,12.73579653]
[1647021970321,23.58,81.016,80.95,18.5159]
[1647021970522,1.6792485,81.039,80.952,56.64039616]
[1647021970717,1.6792485,81.039,80.953,29.7246]
[1647021970917,1.6792485,81.039,80.953,62.23510733]
[1647021971120,1.6792485,81.045,80.954,146.50523123]
[1647021971319,1.6792485,81.045,80.955,53.2389]
[1647021971520,1.6792485,81.045,80.971,49.40556884]
[1647021971721,1.6792485,81.046,80.972,29.6873]
[1647021972120,6.172,81.045,80.972,32.73177957]
[1647021972320,1.6792485,81.049,80.973,126.64447957]
[1647021972520,1.6792485,81.05,80.991,62.86658747]
[1647021972723,1.6792485,81.051,80.991,62.86658747]
[1647021972923,1.6792485,81.051,80.992,3.04447957]
[1647021973222,6.172,81.068,80.993,6.171]
[1647021973223,1.6792485,81.062,80.993,6.171]
[1647021973423,1.6792485,81.062,81.0,18.5117]
[1647021973621,1.6792485,81.063,81.0,32.9317]
[1647021973822,1.6792485,81.064,81.0,32.9317]
[1647021974021,1.6792485,81.064,81.001,3.04447957]
[1647021974421,6.17,81.066,81.001,3.04447957]
[1647021974422,1.6792485,81.061,81.01,18.5098]
[1647021974624,6.17,81.066,81.011,64.44774495]
[1647021974822,23.4928,81.067,81.011,67.49222452]
[1647021975025,1.6792485,81.073,81.012,6.168]
[1647021975223,1.6792485,81.078,81.012,9.21247957]
[1647021975424,1.6792485,81.081,81.02,18.5053]
[1647021975623,1.6792485,81.082,81.02,18.5053]
[1647021976022,1.6792485,81.081,81.02,18.5053]
[1647021976224,1.6792485,81.081,81.02,21.54977957]
[1647021976423,1.6792485,81.082,81.02,21.54977957]
[1647021976722,1.6792485,81.083,81.021,6.168]
[1647021976924,1.6792485,81.085,81.03,18.5042]
[1647021977121,23.4928,81.088,81.032,61.08661997]
[1647021977324,23.4928,81.088,81.033,6.168]
[1647021977722,1.6792485,81.099,81.034,3.04447957]
[1647021978027,1.6792485,81.103,81.04,18.5017]
[1647021978625,1.6792485,81.104,81.04,18.5017]
[1647021978824,1.6792485,81.103,81.04,18.5017]
[1647021979025,18.5049,81.1,81.04,18.5017]
[1647021979425,129.767,81.099,81.035,23.605]
[1647021979625,125.2792485,81.099,81.035,23.605]
[1647021979828,1.6792485,81.097,81.035,23.605]
[1647021980428,1.6792485,81.097,81.036,61.30227773]
[1647021980628,123.6,81.099,81.04,18.507]
[1647021981027,123.6,81.099,81.007,3.04447957]
[1647021981028,1.6792485,81.102,81.01,14.42]
[1647021981226,1.6792485,81.088,80.99,14.42]
[1647021981429,197.76,81.097,80.983,22.7268]
[1647021981430,1.6792485,81.08,80.983,22.7268]
[1647021981725,49.14423516,81.098,80.983,22.7268]
[1647021981726,18.5185,81.06,80.99,18.5178]
[1647021981925,47.4957,81.068,80.99,18.5178]
[1647021982128,47.4957,81.068,80.991,3.04447957]
[1647021982326,1.6792485,81.08,80.991,157.16394066]
[1647021982526,47.619,81.095,80.993,123.6]
[1647021982726,6.168,81.094,80.993,123.6]
[1647021982927,6.168,81.094,81.01,18.5069]
[1647021983130,47.619,81.095,81.02,14.42]
[1647021983527,47.619,81.095,81.021,3.04447957]
[1647021984127,47.619,81.095,81.031,65.01300343]
[1647021984828,18.5074,81.09,81.022,23.6703]
[1647021985035,123.6,81.089,81.022,23.6703]
[1647021985250,123.6,81.089,80.95,126.75941069]
[1647021985251,197.76,81.087,81.01,18.5123]
[1647021985642,6.168,81.086,81.01,18.5123]
[1647021986043,123.6,81.084,81.011,60.27736085]
[1647021986242,18.5135,81.07,81.011,60.27736085]
[1647021987247,18.5135,81.07,81.02,18.5111]
[1647021989451,18.5135,81.07,81.02,36.7435]
[1647021990253,6.168,81.083,81.02,36.7435]
[1647021990453,18.51,81.08,81.02,36.7435]
[1647021990653,6.168,81.079,81.02,36.7435]
[1647021992553,6.168,81.084,81.03,18.5061]
[1647021992755,23.0441,81.085,81.031,47.53484033]
[1647021993158,23.0441,81.085,81.03,18.5061]
[1647021993159,18.5091,81.08,81.03,18.5061]
[1647021993356,18.5091,81.08,81.02,18.2324]
[1647021994155,18.5091,81.08,81.02,36.7437]
[1647021997882,18.5091,81.08,81.021,6.169]
[1647021998286,18.5091,81.08,81.03,18.5099]
[1647021999186,20.1883485,81.08,81.03,18.5099]
[1647021999790,1.6792485,81.079,81.03,18.5099]
[1647022000395,199.4392485,81.079,81.021,6.169]
[1647022000591,18.5114,81.07,81.02,36.7438]
[1647022001194,125.2792485,81.075,81.02,36.7438]
[1647022001391,125.2792485,81.075,81.021,56.6370717]
[1647022001591,1.6792485,81.075,81.021,56.6370717]
[1647022001792,1.6792485,81.075,81.03,18.5099]
[1647022001992,1.6792485,81.073,81.03,18.5099]
[1647022002791,18.5111,81.07,81.02,36.7446]
[1647022002994,1.6792485,81.068,81.02,36.7446]
[1647022004396,18.5136,81.06,81.012,6.168]
[1647022004594,123.6,81.059,81.001,6.17]
[1647022004796,1.6792485,81.058,80.995,24.7805]
[1647022004994,1.6792485,81.054,80.995,24.7805]
[1647022005194,1.6792485,81.053,80.995,24.7805]
[1647022005396,1.6792485,81.055,80.996,49.46749004]
[1647022005596,18.5196,81.05,81.0,18.5168]
[1647022005795,18.5196,81.05,81.001,6.17]
[1647022006195,123.6,81.049,81.0,18.5168]
[1647022007303,18.5196,81.05,81.0,18.5168]
[1647022007703,1.6792485,81.057,81.0,18.5168]
[1647022007903,1.6792485,81.059,81.001,6.17]
[1647022008102,1.6792485,81.059,81.01,18.5117]
[1647022008303,1.6792485,81.06,81.01,18.5117]
[1647022008508,25.3488485,81.061,81.01,18.5117]
[1647022009507,1.6792485,81.059,81.01,18.5117]
[1647022009706,25.3488485,81.061,81.01,18.5117]
[1647022010112,18.5144,81.06,81.01,18.5117]
[1647022010510,20.1936485,81.06,81.01,18.5117]
[1647022011210,18.5177,81.05,80.993,24.4485]
[1647022011413,22.5214,81.049,80.993,24.4485]
[1647022012210,22.5214,81.049,81.0,18.5169]
[1647022014312,22.5214,81.049,81.001,6.17]
[1647022014512,22.5214,81.049,81.01,18.5129]
[1647022016127,22.5214,81.049,81.003,6.17]
[1647022016330,22.5214,81.049,80.995,6.17]
[1647022016628,22.5214,81.049,80.99,30.0222]
[1647022017030,24.2006485,81.049,80.99,30.0222]
[1647022017328,22.5214,81.049,80.99,23.8512]
[1647022017930,22.5214,81.049,80.99,42.3703]
[1647022018129,22.5214,81.049,80.99,48.5413]
[1647022019129,22.5214,81.049,80.991,3.04447957]
[1647022019430,22.5214,81.049,81.0,18.5157]
[1647022019930,22.5214,81.049,81.0,21.56017957]
[1647022021230,22.5214,81.049,81.0,18.5157]
[1647022021631,22.5214,81.049,81.001,6.17]
[1647022021829,22.5214,81.049,81.01,18.5142]
[1647022023029,1.6792485,81.06,81.01,18.5142]
[1647022023231,1.6792485,81.062,81.011,3.04447957]
[1647022023430,1.6792485,81.063,81.021,56.77858808]
[1647022023629,24.8762485,81.064,81.021,56.77858808]
[1647022024030,23.197,81.064,81.021,56.77858808]
[1647022024830,24.8762485,81.064,81.021,56.77858808]
[1647022025232,1.6792485,81.063,81.021,56.77858808]
[1647022025433,24.8762485,81.064,81.021,56.77858808]
[1647022025634,1.6792485,81.063,81.021,56.77858808]
[1647022027534,23.197,81.064,81.021,56.77858808]
[1647022027535,1.6792485,81.062,81.021,56.77858808]
[1647022028938,18.5139,81.06,81.021,56.77858808]
[1647022030242,1.6792485,81.061,81.021,56.77858808]
[1647022030438,1.6792485,81.06,81.021,56.77858808]
[1647022030838,1.6792485,81.059,81.021,56.77858808]
[1647022031039,1.6792485,81.059,81.02,18.5123]
[1647022031240,18.5161,81.05,81.001,23.9847]
[1647022031741,20.1953485,81.05,81.001,23.9847]
[1647022032143,23.4549,81.049,81.002,59.46477314]
[1647022033442,25.1341485,81.049,81.002,59.46477314]
[1647022034343,1.6792485,81.048,81.002,59.46477314]
[1647022035043,1.6792485,81.049,81.01,18.5144]
[1647022035242,1.6792485,81.059,81.01,18.5144]
[1647022035644,23.197,81.064,81.01,18.5144]
[1647022035645,1.6792485,81.06,81.01,18.5144]
[1647022035846,1.6792485,81.061,81.01,18.5144]
[1647022036245,1.6792485,81.062,81.002,59.46477314]
[1647022036445,123.6,81.062,81.002,59.46477314]
[1647022036645,123.6,81.06,81.002,59.46477314]
[1647022037046,7.8492485,81.062,81.002,59.46477314]
[1647022037245,80.33,81.062,81.0,32.9366]
[1647022037452,1.6792485,81.055,80.985,24.3929]
[1647022037647,6.171,81.054,80.985,24.3929]
[1647022037846,1.6792485,81.051,80.985,24.3929]
[1647022038048,123.6,81.049,80.985,24.3929]
[1647022038246,125.2792485,81.049,80.985,24.3929]
[1647022038446,197.76,81.047,80.99,18.5188]
[1647022038647,147.8884,81.046,80.99,18.5188]
[1647022040147,24.2884,81.046,80.99,18.5188]
[1647022040348,147.8884,81.046,80.99,18.5188]
[1647022041151,147.8884,81.046,80.985,24.3929]
[1647022041348,6.171,81.045,80.985,24.3929]
[1647022041548,1.6792485,81.042,80.985,24.3929]
[1647022042049,1.6792485,81.043,80.985,24.3929]
[1647022042249,1.6792485,81.043,81.0,18.5169]
[1647022042451,1.6792485,81.044,80.985,24.3929]
[1647022042647,24.2884,81.046,80.991,13.12159306]
[1647022042848,24.2884,81.046,81.0,3.04447957]
[1647022043248,24.2884,81.046,81.0,21.56037957]
[1647022043749,1.6792485,81.058,81.0,21.56037957]
[1647022043950,1.6792485,81.073,81.0,55.15197263]
[1647022044149,1.6792485,81.073,81.001,123.6]
[1647022044352,1.6792485,81.086,81.02,18.4995]
[1647022044651,1.6792485,81.097,81.03,14.42]
[1647022044859,1.6792485,81.106,81.024,123.6]
[1647022045061,25.8362485,81.108,81.031,57.02947758]
[1647022045252,24.157,81.108,81.032,123.6]
[1647022045453,1.6792485,81.111,81.032,180.62947758]
[1647022045653,1.6792485,81.113,81.034,123.6]
[1647022045855,24.0025,81.118,81.051,56.62716855]
[1647022045856,1.6792485,81.114,81.051,56.62716855]
[1647022046054,1.6792485,81.114,81.06,14.42]
[1647022046252,1.6792485,81.115,81.06,14.42]
[1647022046452,24.0025,81.118,81.06,14.42]
[1647022046655,6.166,81.117,81.061,16.16607263]
[1647022046853,1.6792485,81.125,81.07,18.4993]
[1647022047055,1.6792485,81.125,81.081,58.6966345]
[1647022047254,1.6792485,81.126,81.081,58.6966345]
[1647022047453,1.6792485,81.127,81.081,58.6966345]
[1647022047660,1.6792485,81.132,81.081,58.6966345]
[1647022047858,23.8727,81.133,81.09,18.496]
[1647022048059,1.6792485,81.136,81.09,18.496]
[1647022048455,6.164,81.149,81.09,18.496]
[1647022048456,1.6792485,81.142,81.09,18.496]
[1647022048659,1.6792485,81.143,81.09,18.496]
[1647022048882,123.6,81.149,81.09,18.496]
[1647022048883,1.6792485,81.144,81.09,18.496]
[1647022049457,18.4958,81.15,81.09,18.496]
[1647022049458,1.6792485,81.147,81.09,18.496]
[1647022049658,1.6792485,81.148,81.09,18.496]
[1647022049857,21.44017808,81.146,81.09,18.496]
[1647022050159,21.44017808,81.147,81.09,18.496]
[1647022050357,21.44017808,81.147,81.081,58.6966345]
[1647022050358,123.6,81.139,81.081,58.6966345]
[1647022053060,18.4979,81.14,81.081,58.6966345]
[1647022053260,74.16,81.147,81.09,18.496]
[1647022053462,18.496,81.15,81.09,18.496]
[1647022053759,1.6792485,81.153,81.09,18.496]
[1647022053958,23.8727,81.156,81.09,18.496]
[1647022053959,23.8727,81.156,81.091,6.163]
[1647022054160,123.6,81.154,81.091,6.163]
[1647022054461,123.6,81.154,81.1,18.4931]
[1647022055262,123.6,81.154,81.082,6.163]
[1647022055662,123.6,81.154,81.09,18.4955]
[1647022055962,123.6,81.154,81.091,6.163]
[1647022056266,123.6,81.154,81.082,6.163]
[1647022056663,123.6,81.154,81.1,18.4936]
[1647022056861,123.6,81.154,81.082,6.163]
[1647022057063,6.163,81.153,81.082,6.163]
[1647022057264,129.763,81.153,81.082,6.163]
[1647022057663,129.763,81.153,81.09,18.4953]
[1647022058065,129.763,81.153,81.09,32.9153]
[1647022058264,6.163,81.153,81.09,32.9153]
[1647022058464,6.163,81.155,81.09,32.9153]
[1647022058663,123.6,81.15,81.09,32.9153]
[1647022058865,6.163,81.149,81.09,32.9153]
[1647022059064,129.763,81.149,81.09,32.9153]
[1647022059664,6.163,81.149,81.09,32.9153]
[1647022059867,123.6,81.149,81.091,6.163]
[1647022060071,18.4958,81.15,81.091,6.163]
[1647022061369,23.1087,81.156,81.1,18.4938]
[1647022062270,146.7087,81.156,81.1,18.4938]
[1647022066701,123.6,81.149,81.09,18.4957]
[1647022066900,123.6,81.149,81.09,32.9157]
[1647022067502,197.76,81.147,81.09,14.42]
[1647022067805,197.76,81.139,81.082,6.163]
[1647022068001,197.76,81.139,81.081,6.164]
[1647022068405,197.76,81.139,81.082,63.58000004]
[1647022068701,197.76,81.139,81.083,6.164]
[1647022070104,18.4976,81.14,81.083,6.164]
[1647022070305,80.324,81.149,81.09,18.4962]
[1647022070709,80.324,81.149,81.083,6.164]
[1647022070909,80.324,81.149,81.081,6.164]
[1647022071206,1.6792485,81.137,81.07,14.42]
[1647022071404,199.4392485,81.135,81.07,14.42]
[1647022071611,7.8442485,81.134,81.07,14.42]
[1647022071815,23.1553,81.136,81.071,56.35384253]
[1647022072806,23.1553,81.136,81.08,18.4964]
[1647022073007,23.1553,81.136,81.081,6.164]
[1647022073507,1.6792485,81.129,81.081,6.164]
[1647022073705,1.6792485,81.128,81.081,6.164]
[1647022073905,1.6792485,81.119,81.066,6.164]
[1647022074107,1.6792485,81.119,81.057,24.5567]
[1647022074308,1.6792485,81.113,81.055,6.165]
[1647022074609,1.6792485,81.111,81.055,6.165]
[1647022074810,1.6792485,81.111,81.06,18.5023]
[1647022075607,1.6792485,81.112,81.06,18.5023]
[1647022075810,1.6792485,81.106,81.06,18.5023]
[1647022076108,197.76,81.117,81.06,18.5023]
[1647022076109,1.6792485,81.107,81.06,18.5023]
[1647022076608,1.6792485,81.108,81.06,18.5023]
[1647022076807,1.6792485,81.108,81.046,29.49264967]
[1647022077008,1.6792485,81.108,81.05,18.5045]
[1647022077410,125.2792485,81.109,81.05,18.5045]
[1647022077607,1.6792485,81.109,81.055,65.34138314]
[1647022077812,20.1828485,81.11,81.055,65.34138314]
[1647022078407,1.6792485,81.109,81.055,65.34138314]
[1647022078609,20.1828485,81.11,81.055,65.34138314]
[1647022078812,18.5036,81.11,81.055,65.34138314]
[1647022079110,18.5036,81.11,81.06,18.5029]
[1647022079308,1.6792485,81.112,81.06,18.5029]
[1647022079709,25.6004485,81.116,81.06,32.9229]
[1647022080111,25.6004485,81.116,81.06,35.96737957]
[1647022080308,23.9212,81.116,81.06,35.96737957]
[1647022084614,23.9212,81.116,81.061,13.12159306]
[1647022084816,6.166,81.129,81.07,18.4953]
[1647022085016,1.6792485,81.131,81.07,18.4953]
[1647022085217,24.0072,81.151,81.062,3.04447957]
[1647022085218,1.6792485,81.136,81.081,65.97784237]
[1647022085518,1.6792485,81.138,81.09,14.42]
[1647022085817,1.6792485,81.138,81.09,32.912]
[1647022086418,1.6792485,81.139,81.09,32.912]
[1647022086821,1.6792485,81.138,81.09,32.912]
[1647022087219,1.6792485,81.136,81.09,14.42]
[1647022088219,1.6792485,81.137,81.09,14.42]
[1647022088920,1.6792485,81.135,81.09,14.42]
[1647022089120,1.6792485,81.135,81.09,32.9162]
[1647022090025,1.6792485,81.134,81.09,32.88927844]
[1647022090245,1.6792485,81.135,81.09,32.88927844]
[1647022090642,1.6792485,81.134,81.09,32.88927844]
[1647022092245,1.64427294,81.134,81.09,32.88927844]
[1647022094446,30.9185,81.139,81.09,32.88927844]
[1647022095745,24.7545,81.139,81.09,32.88927844]
[1647022099761,6.164,81.158,81.09,32.88927844]
[1647022099963,6.73235312,81.157,81.11,18.49]
[1647022100162,6.162,81.162,81.11,18.49]
[1647022100363,6.162,81.164,81.111,55.11788824]
[1647022100565,18.49,81.17,81.111,55.11788824]
[1647022100764,24.1926,81.169,81.112,24.4258]
[1647022101165,21.46824194,81.168,81.112,24.4258]
[1647022101564,6.162,81.167,81.112,24.4258]
[1647022101965,21.46824194,81.166,81.112,24.4258]
[1647022102168,6.162,81.165,81.12,18.4892]
[1647022102768,24.1926,81.169,81.12,18.4892]
[1647022103166,21.50427472,81.168,81.12,18.4892]
[1647022110577,24.1926,81.169,81.121,6.16]
[1647022114580,24.1926,81.169,81.13,18.487]
[1647022125113,24.1926,81.169,81.13,32.907]
[1647022127220,18.4874,81.18,81.13,32.907]
[1647022127416,24.7237,81.188,81.131,6.16]
[1647022127619,24.7237,81.188,81.141,65.91071367]
[1647022127818,24.7237,81.188,81.15,14.42]
[1647022128217,3.36118215,81.204,81.15,14.42]
[1647022128422,3.36118215,81.208,81.15,14.42]
[1647022128718,21.45522206,81.207,81.16,18.48]
[1647022128920,28.18320115,81.207,81.16,18.48]
[1647022129118,6.72797909,81.206,81.16,32.9]
[1647022129622,24.7237,81.215,81.16,32.9]
[1647022129822,6.72702148,81.214,81.16,32.9]
[1647022130019,28.17042956,81.214,81.16,32.9]
[1647022130419,24.7237,81.215,81.16,32.9]
[1647022132022,18.4796,81.21,81.16,32.9]
[1647022132224,6.158,81.209,81.16,32.9]
[1647022132624,118.78495508,81.2,81.16,32.9]
[1647022133425,123.6,81.199,81.16,32.9]
[1647022133629,123.6,81.199,81.16,14.42]
[1647022134427,137.26665508,81.2,81.16,14.42]
[1647022138059,118.78495508,81.2,81.16,32.9004]
[1647022146865,137.26625508,81.2,81.16,32.9004]
[1647022149467,18.4813,81.2,81.16,32.9004]
[1647022152073,23.3872,81.205,81.16,32.9004]
[1647022152271,6.158,81.204,81.16,32.9004]
[1647022152472,23.3872,81.205,81.16,32.9004]
[1647022162288,22.8872,81.205,81.16,32.9004]
[1647022163996,18.4774,81.22,81.16,32.9004]
[1647022164191,48.6532,81.219,81.18,18.4756]
[1647022166692,123.6,81.218,81.177,56.91090895]
[1647022167197,48.6532,81.219,81.177,56.91090895]
[1647022167591,123.6,81.218,81.177,56.91090895]
[1647022167792,123.6,81.218,81.17,18.4772]
[1647022169117,21.48404703,81.217,81.17,18.4772]
[1647022169514,23.4024,81.216,81.17,18.4772]
[1647022173320,123.6,81.214,81.16,18.4794]
[1647022173519,197.76,81.208,81.138,13.12159306]
[1647022173719,197.76,81.208,81.139,60.89384036]
[1647022173924,6.159,81.207,81.139,60.89384036]
[1647022174119,123.6,81.206,81.139,60.89384036]
[1647022174318,74.16,81.199,81.14,18.4843]
[1647022174519,123.6,81.189,81.14,18.4843]
[1647022174718,148.5283,81.189,81.14,18.4843]
[1647022177126,197.76,81.188,81.134,24.8835]
[1647022177328,197.76,81.188,81.13,18.4863]
[1647022177329,197.76,81.178,81.13,18.4863]
[1647022177529,197.76,81.178,81.114,22.5474]
[1647022177530,6.16,81.177,81.114,22.5474]
[1647022177727,123.6,81.168,81.11,14.42]
[1647022177927,123.6,81.166,81.11,14.42]
[1647022178130,74.16,81.161,81.11,18.491]
[1647022178329,123.6,81.156,81.11,18.491]
[1647022178528,123.6,81.156,81.092,47.44427072]
[1647022178732,123.6,81.154,81.092,47.44427072]
[1647022178933,74.16,81.151,81.092,47.44427072]
[1647022179149,123.6,81.146,81.1,18.4932]
[1647022179333,123.6,81.136,81.092,24.87987072]
[1647022179937,123.6,81.136,81.084,13.12159306]
[1647022180134,123.6,81.134,81.084,13.12159306]
[1647022180339,74.16,81.127,81.08,32.9179]
[1647022180536,74.16,81.127,81.071,13.12159306]
[1647022180537,123.6,81.126,81.071,13.12159306]
[1647022181336,6.165,81.134,81.07,18.5002]
[1647022181337,123.6,81.116,81.07,18.5002]
[1647022182336,123.6,81.116,81.064,24.87987072]
[1647022182737,123.6,81.116,81.065,13.12159306]
[1647022182938,18.5011,81.12,81.065,13.12159306]
[1647022183140,18.4996,81.13,81.066,24.87987072]
[1647022183338,6.165,81.129,81.066,27.92435029]
[1647022183540,6.165,81.129,81.07,14.42]
[1647022183938,129.765,81.129,81.071,13.12159306]
[1647022184344,197.76,81.127,81.07,18.5001]
[1647022184540,6.165,81.126,81.07,18.5001]
[1647022185141,22.6874,81.125,81.07,18.5001]
[1647022185440,6.165,81.124,81.07,18.5001]
[1647022187771,18.4996,81.13,81.071,38.00146378]
[1647022187970,24.1518,81.133,81.08,18.4975]
[1647022188169,24.1518,81.133,81.081,64.66540208]
[1647022188372,24.1518,81.133,81.081,77.78699514]
[1647022188570,30.8737,81.159,81.082,3.04447957]
[1647022188769,123.6,81.158,81.083,23.4538]
[1647022188968,6.163,81.157,81.083,23.4538]
[1647022189169,6.163,81.158,81.084,3.04447957]
[1647022189372,6.163,81.158,81.084,9.6052761]
[1647022189569,6.163,81.158,81.084,16.16607263]
[1647022189769,24.7097,81.159,81.09,18.4946]